bitfinex/quotes_SOLUSD_20250624
["timestamp","ask_amount","ask_price","bid_price","bid_amount"]
[1750732066306,5.15264372,143.02,142.94,102.15608111]
[1750732066508,5.76025055,143.0,142.95,5.76025055]
[1750732067890,5.76025055,143.0,142.95,24.40989941]
[1750732068099,31.76025055,143.01,142.96,24.40989941]
[1750732068308,31.76025055,143.01,142.97,5.76025055]
[1750732068521,31.76025055,143.01,142.97,102.1542487]
[1750732069199,26.0,143.01,142.97,102.1542487]
[1750732069409,26.0,143.01,142.98,12.7541938]
[1750732070430,5.15264372,143.04,142.98,12.7541938]
[1750732070612,31.76025055,143.03,142.98,102.1541938]
[1750732071232,36.91289427,143.03,142.98,102.1541938]
[1750732071423,31.76025055,143.03,142.98,102.1541938]
[1750732071726,31.76025055,143.03,142.98,89.4]
[1750732071727,5.76025055,143.0,142.98,89.4]
[1750732072024,5.76025055,143.0,142.95,12.7557035]
[1750732072197,5.76025055,143.0,142.95,102.1557035]
[1750732073020,5.76025055,143.01,142.96,5.76025055]
[1750732073599,5.15264372,143.02,142.97,5.76025055]
[1750732073822,5.76025055,143.01,142.97,5.76025055]
[1750732074225,31.76025055,143.03,142.98,5.76025055]
[1750732074402,36.91289427,143.03,142.98,95.16025055]
[1750732074602,31.76025055,143.03,142.98,95.16025055]
[1750732074809,36.91289427,143.03,142.98,95.16025055]
[1750732075008,31.76025055,143.03,142.98,95.16025055]
[1750732075621,31.76025055,143.03,142.98,102.15414842]
[1750732077933,26.0,143.03,142.98,102.15414842]
[1750732078104,31.76025055,143.03,142.99,5.76025055]
[1750732078521,31.76025055,143.03,142.99,95.16025055]
[1750732079934,31.76025055,143.03,142.99,102.15370628]
[1750732080134,5.76025055,143.04,142.99,102.15370628]
[1750732080431,1.6412,143.05,143.0,5.76025055]
[1750732080432,36.91289427,143.05,143.0,5.76025055]
[1750732080622,5.76025055,143.04,143.0,5.76025055]
[1750732081202,5.26025055,143.04,143.0,12.75313774]
[1750732081406,5.76025055,143.03,142.99,102.15361815]
[1750732082031,5.76025055,143.02,142.99,89.4]
[1750732082213,5.76025055,143.01,142.99,89.4]
[1750732083430,5.76025055,143.02,142.99,89.4]
[1750732085222,5.76025055,143.02,142.97,89.4]
[1750732085223,5.76025055,143.0,142.97,89.4]
[1750732085424,26.0,143.0,142.93,104.4540642]
[1750732085714,26.0,143.0,142.93,110.21431475]
[1750732085715,5.76025055,142.98,142.93,110.21431475]
[1750732087333,5.76025055,142.97,142.93,104.4540642]
[1750732087925,5.76025055,142.98,142.93,110.21431475]
[1750732090231,26.0,143.0,142.93,110.21431475]
[1750732090432,5.76025055,142.98,142.93,110.21431475]
[1750732091124,26.0,143.0,142.93,110.21431475]
[1750732091329,5.76025055,142.98,142.93,110.21431475]
[1750732091912,5.76025055,142.98,142.93,104.4540642]
[1750732092119,5.76025055,142.98,142.93,110.21431475]
[1750732092934,5.76025055,142.98,142.93,104.4540642]
[1750732093127,5.76025055,142.98,142.93,110.21431475]
[1750732093430,26.0,143.0,142.94,18.64964886]
[1750732093617,26.0,143.0,142.95,5.76025055]
[1750732093938,31.76025055,143.0,142.95,5.76025055]
[1750732095047,31.76025055,143.0,142.95,12.75544461]
[1750732095342,5.76025055,142.99,142.95,12.75544461]
[1750732096148,5.76025055,142.99,142.95,102.15544461]
[1750732096847,5.76025055,142.99,142.95,96.39519406]
[1750732098048,5.76025055,142.98,142.95,89.4]
[1750732098640,26.0,143.0,142.93,95.84]
[1750732098641,5.76025055,142.97,142.93,95.84]
[1750732098840,5.76025055,142.95,142.93,6.44]
[1750732099443,5.76025055,142.96,142.93,6.44]
[1750732101047,26.0,142.99,142.93,19.19659814]
[1750732101226,6.78954372,143.0,142.93,19.19659814]
[1750732101227,5.76025055,142.98,142.93,19.19659814]
[1750732101426,5.76025055,142.97,142.93,102.83634759]
[1750732101646,26.0,142.98,142.93,102.83634759]
[1750732101851,5.76025055,142.97,142.93,102.83634759]
[1750732102439,26.0,142.98,142.93,102.83634759]
[1750732102440,5.76025055,142.98,142.93,108.59659814]
[1750732102860,5.76025055,142.99,142.94,5.76025055]
[1750732103955,5.76025055,142.99,142.95,6.99545295]
[1750732104531,5.15264372,143.03,142.97,5.76025055]
[1750732104732,5.76025055,143.02,142.97,95.16025055]
[1750732104952,31.76025055,143.02,142.97,95.16025055]
[1750732106026,31.76025055,143.02,142.97,102.15445568]
[1750732106430,5.76025055,143.01,142.97,102.15445568]
[1750732106843,5.76025055,143.01,142.97,96.39420513]
[1750732108051,31.76025055,143.02,142.97,102.15445568]
[1750732108968,6.77744372,143.04,142.98,24.40989941]
[1750732109160,5.76025055,143.03,142.98,24.40989941]
[1750732109464,5.76025055,143.02,142.97,102.15445568]
[1750732109644,5.76025055,143.03,142.98,24.40989941]
[1750732109981,10.91289427,143.05,143.0,5.76025055]
[1750732110153,10.91289427,143.06,143.01,5.76025055]
[1750732110353,5.76025055,143.06,143.02,6.99202908]
[1750732110553,10.91289427,143.06,143.02,6.99202908]
[1750732110970,5.76025055,143.06,143.02,6.99202908]
[1750732111252,5.15264372,143.07,143.03,18.64964886]
[1750732111477,6.1349,143.11,143.04,5.76025055]
[1750732111478,5.15264372,143.09,143.04,5.76025055]
[1750732111772,5.76025055,143.09,143.04,5.76025055]
[1750732112165,5.15264372,143.1,143.04,5.76025055]
[1750732112473,5.76025055,143.09,143.05,6.99056274]
[1750732113714,5.76025055,143.07,143.04,6.99089156]
[1750732113854,5.76025055,143.07,143.03,115.04105708]
[1750732114762,37.28754372,143.11,143.03,115.04105708]
[1750732114763,5.76025055,143.05,143.03,89.4]
[1750732114959,5.76025055,143.05,143.02,6.99194825]
[1750732116078,5.76025055,143.06,143.02,6.99194825]
[1750732116277,5.76025055,143.05,143.01,89.4]
[1750732116484,5.76025055,143.04,143.01,89.4]
[1750732116685,5.76025055,143.02,142.99,89.4]
[1750732118068,32.3965,143.06,142.99,89.4]
[1750732118368,5.76025055,143.02,142.99,89.4]
[1750732122386,31.76025055,143.0,142.9,17.49394435]
[1750732122578,5.76025055,142.96,142.91,12.7576615]
[1750732123570,5.76025055,142.97,142.92,5.76025055]
[1750732123776,5.76025055,142.97,142.92,12.75712359]
[1750732126172,5.76025055,142.98,142.93,24.40989941]
[1750732126372,5.76025055,142.97,142.93,24.40989941]
[1750732126583,5.76025055,142.97,142.93,31.40612633]
[1750732128100,5.76025055,142.97,142.93,25.64587578]
[1750732128669,5.76025055,142.97,142.93,115.04587578]
[1750732130401,5.76025055,142.98,142.93,120.80612633]
[1750732131910,5.76025055,142.97,142.93,115.04587578]
[1750732132207,5.76025055,142.97,142.93,120.80612633]
[1750732133081,5.76025055,142.96,142.93,89.4]
[1750732133909,5.76025055,142.95,142.93,89.4]
[1750732134111,5.76025055,142.96,142.93,89.4]
[1750732138514,5.76025055,142.98,142.93,102.15664338]
[1750732139910,5.76025055,142.98,142.94,5.76025055]
[1750732140113,5.76025055,142.98,142.94,12.75590265]
[1750732141710,31.76025055,142.99,142.94,12.75590265]
[1750732143398,31.76025055,142.99,142.94,102.15590265]
[1750732144524,5.76025055,142.99,142.95,5.76025055]
[1750732145005,5.76025055,143.02,142.97,5.76025055]
[1750732145320,5.76025055,143.02,142.98,5.76025055]
[1750732145721,7.28005055,143.05,143.0,5.76025055]
[1750732146012,31.76025055,143.05,143.0,5.76025055]
[1750732146203,5.76025055,143.05,143.0,5.76025055]
[1750732146410,26.0,143.04,143.0,5.76025055]
[1750732146610,31.76025055,143.04,143.0,12.75309854]
[1750732147012,26.0,143.04,143.0,12.75309854]
[1750732147212,5.76025055,143.04,143.0,12.75309854]
[1750732147403,31.76025055,143.04,143.0,6.99284799]
[1750732147605,31.76025055,143.04,143.0,12.75309854]
[1750732148194,5.76025055,143.05,143.0,12.75309854]
[1750732148394,6.67584799,143.09,143.01,5.76025055]
[1750732148693,31.76025055,143.06,143.01,12.14025055]
[1750732149016,5.76025055,143.08,143.03,5.76025055]
[1750732149207,12.62577275,143.12,143.04,5.76025055]
[1750732149392,5.76025055,143.09,143.02,18.64964886]
[1750732149591,5.76025055,143.08,143.03,5.76025055]
[1750732150205,5.76025055,143.08,143.04,12.75116026]
[1750732150805,5.76025055,143.09,143.04,12.75116026]
[1750732152116,26.0,143.11,143.04,12.75116026]
[1750732152315,26.0,143.11,143.06,5.76025055]
[1750732152523,31.76025055,143.11,143.07,5.76025055]
[1750732152921,5.76025055,143.11,143.07,95.16025055]
[1750732153733,18.3860233,143.12,143.07,95.16025055]
[1750732153926,18.3860233,143.12,143.07,104.98411046]
[1750732154518,18.3860233,143.12,143.07,111.97326994]
[1750732155312,18.3860233,143.12,143.07,106.21301939]
[1750732155512,18.3860233,143.12,143.07,111.97326994]
[1750732156028,5.76025055,143.11,143.07,111.97326994]
[1750732158806,12.62577275,143.12,143.07,111.97326994]
[1750732159007,5.76025055,143.11,143.07,111.97326994]
[1750732159726,18.3860233,143.12,143.07,111.97326994]
[1750732160027,12.62577275,143.12,143.07,111.97326994]
[1750732160207,18.3860233,143.12,143.07,111.97326994]
[1750732161031,18.3860233,143.12,143.07,106.21301939]
[1750732161203,18.3860233,143.12,143.07,111.97326994]
[1750732162132,5.76025055,143.11,143.07,111.97326994]
[1750732162618,12.62577275,143.12,143.07,111.97326994]
[1750732162933,5.76025055,143.11,143.07,111.97326994]
[1750732164907,5.76025055,143.11,143.07,106.21301939]
[1750732165110,5.76025055,143.11,143.07,95.78]
[1750732167612,5.76025055,143.11,143.07,108.52978891]
[1750732168744,5.76025055,143.11,143.07,95.78]
[1750732168947,5.76025055,143.1,143.07,95.78]
[1750732169732,5.76025055,143.1,143.05,24.95354886]
[1750732169733,5.76025055,143.08,143.04,7.9629]
[1750732169936,5.76025055,143.08,143.04,97.3629]
[1750732170338,5.76025055,143.07,143.04,97.3629]
[1750732172547,5.76025055,143.08,143.04,104.35394612]
[1750732172952,5.76025055,143.07,143.04,104.35394612]
[1750732173318,26.0,143.1,143.04,104.35394612]
[1750732173319,26.0,143.09,143.05,5.76025055]
[1750732173542,5.76025055,143.1,143.05,5.76025055]
[1750732173767,26.0,143.11,143.06,5.76025055]
[1750732173934,31.76025055,143.11,143.06,95.16025055]
[1750732174336,5.76025055,143.1,143.06,95.16025055]
[1750732175148,26.0,143.11,143.06,102.15028212]
[1750732175452,31.76025055,143.11,143.06,102.15028212]
[1750732176530,5.76025055,143.1,143.06,89.4]
[1750732177261,26.0,143.11,143.04,7.9629]
[1750732177262,5.76025055,143.08,143.04,7.9629]
[1750732177433,5.76025055,143.08,143.04,6.36]
[1750732179929,26.0,143.09,143.04,12.12025055]
[1750732180131,31.76025055,143.09,143.04,12.12025055]
[1750732180434,5.76025055,143.08,143.04,12.12025055]
[1750732180636,5.76025055,143.08,143.04,19.11125341]
[1750732181027,31.76025055,143.09,143.04,19.11125341]
[1750732181837,12.62577275,143.12,143.06,5.76025055]
[1750732181838,5.76025055,143.1,143.06,5.76025055]
[1750732182154,5.76025055,143.1,143.05,5.76025055]
[1750732182325,5.76025055,143.09,143.05,5.76025055]
[1750732183646,26.0,143.11,143.05,12.75072793]
[1750732183853,5.76025055,143.1,143.05,102.15072793]
[1750732185658,26.0,143.11,143.05,102.15072793]
[1750732185857,5.76025055,143.1,143.05,102.15072793]
[1750732186443,5.76025055,143.09,143.05,102.15072793]
[1750732190242,5.76025055,143.1,143.05,102.15072793]
[1750732193269,10.91135326,143.1,143.05,102.15072793]
[1750732199650,5.76025055,143.09,143.05,102.15072793]
[1750732200163,10.91135326,143.09,143.05,89.4]
[1750732200466,5.76025055,143.09,143.05,95.16025055]
[1750732200651,5.15110271,143.09,143.05,102.15079687]
[1750732201051,5.76025055,143.1,143.05,102.15079687]
[1750732201252,36.956209,143.09,143.05,102.15079687]
[1750732201463,31.76025055,143.09,143.05,102.15079687]
[1750732202672,31.76025055,143.09,143.05,95.16025055]
[1750732202977,5.19647133,143.08,143.05,89.4]
[1750732203688,10.95672188,143.08,143.05,89.4]
[1750732203980,26.0,143.09,143.05,89.4]
[1750732203981,10.95603346,143.07,143.05,89.4]
[1750732204275,10.95603346,143.08,143.05,89.4]
[1750732204578,10.95561671,143.08,143.05,89.4]
[1750732204793,5.19536616,143.08,143.05,102.15069701]
[1750732204964,26.0,143.09,143.05,102.15069701]
[1750732205152,36.95586204,143.09,143.05,102.15069701]
[1750732205353,31.76025055,143.09,143.05,102.15069701]
[1750732205765,36.95586204,143.09,143.05,102.15069701]
[1750732206082,5.76025055,143.09,143.05,102.15069701]
[1750732206456,10.95586204,143.09,143.05,102.15069701]
[1750732206657,31.76025055,143.09,143.05,102.15069701]
[1750732207159,36.95586204,143.09,143.05,102.15069701]
[1750732207474,31.76025055,143.09,143.05,102.15069701]
[1750732207867,36.95586204,143.09,143.05,102.15069701]
[1750732208166,31.76025055,143.09,143.05,102.15069701]
[1750732209275,5.76025055,143.1,143.05,102.15069701]
[1750732209580,5.19791161,143.09,143.05,102.15069701]
[1750732209778,10.95816216,143.09,143.05,102.15069701]
[1750732209981,5.76025055,143.09,143.05,102.15069701]
[1750732210278,10.95816216,143.09,143.05,102.15069701]
[1750732210480,26.0,143.11,143.05,102.15069701]
[1750732210481,5.19791161,143.1,143.05,102.15069701]
[1750732210670,10.95816216,143.09,143.05,102.15069701]
[1750732210870,5.76025055,143.09,143.05,102.15069701]
[1750732211184,5.19791161,143.09,143.05,102.15069701]
[1750732211384,10.95816216,143.1,143.05,102.15069701]
[1750732211595,5.19791161,143.09,143.05,102.15069701]
[1750732214068,5.19791161,143.09,143.05,95.16025055]
[1750732214269,5.19791161,143.09,143.05,102.15079286]
[1750732218692,5.19791161,143.09,143.05,95.16025055]
[1750732219980,5.19791161,143.09,143.05,102.15080173]
[1750732220291,3.68733824,143.1,143.05,100.07788942]
[1750732220496,5.20030498,143.09,143.05,100.07788942]
[1750732220680,26.0,143.11,143.05,100.07788942]
[1750732220873,8.88777969,143.1,143.05,100.07788942]
[1750732221074,5.20044145,143.09,143.05,100.07788942]
[1750732221299,26.0,143.11,143.05,100.07788942]
[1750732221593,8.89005266,143.1,143.05,101.72868942]
[1750732221772,5.20271442,143.09,143.05,101.72868942]
[1750732221975,3.68733824,143.1,143.05,101.72868942]
[1750732222189,5.20448238,143.09,143.05,101.72868942]
[1750732222392,3.68733824,143.1,143.05,101.72868942]
[1750732222595,5.20479484,143.09,143.05,101.72868942]
[1750732222804,3.68733824,143.1,143.05,101.72868942]
[1750732222983,5.20480777,143.09,143.05,101.72868942]
[1750732223183,3.68733824,143.1,143.05,101.72868942]
[1750732223501,26.0,143.11,143.05,91.0508]
[1750732223502,8.89223462,143.09,143.05,91.0508]
[1750732223701,29.68733824,143.09,143.05,91.0508]
[1750732223910,3.68733824,143.08,143.05,89.4]
[1750732224197,3.68733824,143.08,143.04,106.3783876]
[1750732224401,8.89558933,143.08,143.04,99.38733824]
[1750732224792,8.89558933,143.08,143.04,106.37830555]
[1750732224998,5.20825109,143.08,143.04,106.37830555]
[1750732225201,29.68733824,143.09,143.04,106.37830555]
[1750732225400,5.20877107,143.08,143.04,106.37830555]
[1750732228012,3.68733824,143.05,143.04,89.4]
[1750732228193,8.89286635,143.05,143.01,107.23833824]
[1750732228514,3.68733824,143.03,143.01,95.7]
[1750732228886,3.68733824,143.03,142.99,93.08733824]
[1750732229086,3.68733824,143.03,142.99,89.4]
[1750732229987,3.68733824,143.03,142.99,96.3934699]
[1750732230312,5.76690666,143.03,142.99,96.3934699]
[1750732230899,5.76690666,143.03,142.99,89.4]
[1750732231103,5.76690666,143.02,142.99,89.4]
[1750732232093,5.76690666,143.02,142.98,104.19813222]
[1750732232302,5.76690666,143.03,142.99,5.76690666]
[1750732233617,5.76690666,143.03,142.99,12.76037699]
[1750732233998,5.76690666,143.03,142.99,5.76690666]
[1750732234210,31.76690666,143.04,142.99,5.76690666]
[1750732234391,5.76690666,143.03,142.98,109.96498252]
[1750732235617,5.76690666,143.03,142.98,102.97110666]
[1750732235826,5.76690666,143.02,142.98,101.46690666]
[1750732236517,5.76690666,143.02,142.98,95.7]
[1750732236702,5.76690666,143.0,142.98,89.4]
[1750732236906,5.76690666,143.0,142.96,101.46690666]
[1750732239807,5.76690666,143.0,142.96,108.46176469]
[1750732240201,5.76690666,143.01,142.96,108.46176469]
[1750732240710,5.76690666,143.01,142.96,102.69485803]
[1750732240910,5.76690666,143.01,142.96,108.46176469]
[1750732242310,5.76690666,143.01,142.96,101.46690666]
[1750732242509,5.76690666,143.0,142.96,95.7]
[1750732242716,36.94257931,143.04,142.95,36.42285062]
[1750732242717,5.76690666,142.97,142.95,89.4]
[1750732242917,5.76690666,142.96,142.94,95.7]
[1750732243147,5.76690666,142.96,142.94,6.3]
[1750732244611,5.76690666,142.98,142.94,6.3]
[1750732244805,5.76690666,142.99,142.95,5.76690666]
[1750732246130,5.31783422,143.03,142.95,5.76690666]
[1750732246131,5.17567265,143.03,142.96,5.76690666]
[1750732246427,5.76690666,143.01,142.97,5.76690666]
[1750732246605,31.76690666,143.01,142.97,5.76690666]
[1750732247915,31.76690666,143.01,142.97,12.76130825]
[1750732253642,31.76690666,143.01,142.96,96.39482633]
[1750732253814,31.76690666,143.01,142.96,102.16173299]
[1750732254738,5.76690666,143.0,142.96,96.39482633]
[1750732254915,5.76690666,143.0,142.96,89.4]
[1750732255244,5.76690666,142.98,142.96,89.4]
[1750732257934,5.76690666,142.97,142.94,95.7]
[1750732258142,26.0,142.98,142.94,95.7]
[1750732258143,5.76690666,142.96,142.94,6.3]
[1750732258729,12.28990118,143.03,142.94,6.3]
[1750732258730,5.76690666,142.95,142.94,6.3]
[1750732259123,5.76690666,142.95,142.93,89.4]
[1750732259726,26.0,143.0,142.93,89.4]
[1750732259925,5.76690666,142.97,142.93,89.4]
[1750732260535,5.76690666,142.96,142.93,89.4]
[1750732261832,5.76690666,142.97,142.93,89.4]
[1750732262029,5.76690666,142.97,142.93,96.39642396]
[1750732263016,5.76690666,142.97,142.93,89.4]
[1750732269349,5.76690666,142.96,142.93,89.4]
[1750732269738,5.76690666,142.96,142.91,96.79900666]
[1750732269946,5.76690666,142.95,142.91,89.4]
[1750732272851,5.76690666,142.95,142.91,96.39740237]
[1750732273051,5.76690666,142.95,142.91,102.16430903]
[1750732275254,5.76690666,142.95,142.91,89.4]
[1750732279143,5.76690666,142.94,142.91,89.4]
[1750732279345,5.76690666,142.94,142.9,95.68]
[1750732280235,31.76690666,142.96,142.91,5.76690666]
[1750732281562,5.76690666,142.95,142.9,108.44478684]
[1750732283869,5.15618132,142.99,142.93,5.76690666]
[1750732284042,10.92308798,143.02,142.96,5.76690666]
[1750732284242,10.92308798,143.03,142.98,5.76690666]
[1750732284562,5.76690666,143.03,142.98,5.76690666]
[1750732284760,36.92308798,143.03,142.98,5.76690666]
[1750732284961,31.76690666,143.03,142.99,5.76690666]
[1750732285545,26.0,143.03,142.99,5.76690666]
[1750732285945,5.76690666,143.04,142.99,12.76025692]
[1750732286352,31.76690666,143.03,142.99,12.76025692]
[1750732289050,31.76690666,143.03,142.99,5.76690666]
[1750732289361,31.76690666,143.03,142.98,96.39380144]
[1750732289552,31.76690666,143.03,142.99,5.76690666]
[1750732289754,31.76690666,143.03,142.98,96.39380144]
[1750732289755,31.76690666,143.03,142.98,102.1607081]
[1750732290671,31.76690666,143.03,142.98,95.16690666]
[1750732291165,5.76690666,143.02,142.98,95.16690666]
[1750732295265,31.76690666,143.03,142.98,95.16690666]
[1750732295467,26.0,143.03,142.98,95.16690666]
[1750732295675,31.76690666,143.03,142.99,5.76690666]
[1750732296551,26.0,143.03,142.99,12.76031016]
[1750732296754,0.14216157,143.06,143.0,5.76690666]
[1750732296971,5.76690666,143.05,143.0,5.76690666]
[1750732297170,26.0,143.04,143.0,5.76690666]
[1750732298878,26.0,143.04,142.99,96.3934035]
[1750732299174,26.0,143.04,143.0,5.76690666]
[1750732299380,26.0,143.04,142.99,96.3934035]
[1750732299581,26.0,143.04,143.0,5.76690666]
[1750732303580,26.0,143.04,143.0,12.75982468]
[1750732303783,26.0,143.04,143.01,5.76690666]
[1750732304162,5.76690666,143.06,143.02,5.76690666]
[1750732304472,26.0,143.06,143.02,5.76690666]
[1750732305359,26.0,143.06,143.02,12.75882093]
[1750732305882,5.76690666,143.07,143.02,12.75882093]
[1750732305883,31.76690666,143.07,143.02,12.75882093]
[1750732306680,31.76690666,143.07,143.02,5.76690666]
[1750732307685,26.0,143.07,143.02,5.76690666]
[1750732307883,5.76690666,143.04,143.0,89.4]
[1750732308086,5.76690666,143.04,143.0,95.16690666]
[1750732310770,5.76690666,143.04,143.0,5.76690666]
[1750732310980,5.76690666,143.04,142.99,95.16690666]
[1750732311781,5.76690666,143.04,142.99,89.4]
[1750732311988,5.76690666,143.04,142.99,95.16690666]
[1750732312486,31.76690666,143.04,142.99,95.16690666]
[1750732313672,5.76690666,143.04,143.0,5.76690666]
[1750732314072,26.0,143.06,143.0,5.76690666]
[1750732314281,5.76690666,143.05,143.0,5.76690666]
[1750732315972,5.76690666,143.05,142.99,96.39347208]
[1750732316272,5.76690666,143.05,143.0,5.76690666]
[1750732317892,5.76690666,143.05,143.01,5.76690666]
[1750732318265,26.0,143.06,143.01,12.75939694]
[1750732318266,31.76690666,143.06,143.01,12.75939694]
[1750732318488,26.0,143.06,143.02,5.76690666]
[1750732318681,26.0,143.06,143.02,13.55500666]
[1750732318990,26.0,143.06,143.02,7.7881]
[1750732319189,26.0,143.06,143.02,13.55500666]
[1750732319888,5.76690666,143.07,143.02,13.55500666]
[1750732319889,6.24,143.11,143.03,5.76690666]
[1750732320082,26.0,143.08,143.04,5.76690666]
[1750732320578,31.76690666,143.08,143.03,5.76690666]
[1750732321080,5.76690666,143.06,143.02,97.1881]
[1750732321265,5.76690666,143.06,143.02,90.9631]
[1750732323588,5.76690666,143.06,143.02,96.73000666]
[1750732323791,5.76690666,143.06,143.02,7.33000666]
[1750732323987,31.76690666,143.07,143.02,7.33000666]
[1750732324805,26.0,143.07,143.04,5.76690666]
[1750732325308,26.0,143.07,143.03,5.76690666]
[1750732326180,26.0,143.07,143.03,12.75840436]
[1750732326408,26.0,143.07,143.03,5.76690666]
[1750732328701,26.0,143.07,143.04,5.76690666]
[1750732329495,5.76690666,143.08,143.04,5.76690666]
[1750732329697,5.76690666,143.09,143.04,5.76690666]
[1750732329889,10.93853146,143.09,143.04,5.76690666]
[1750732330087,31.76690666,143.1,143.05,12.21540666]
[1750732330294,10.93853146,143.11,143.06,5.76690666]
[1750732330495,10.93853146,143.11,143.06,95.16690666]
[1750732330689,36.93853146,143.11,143.06,95.16690666]
[1750732331095,31.1716248,143.11,143.07,5.76690666]
[1750732331296,36.93853146,143.11,143.06,95.16690666]
[1750732331688,31.76690666,143.11,143.06,95.16690666]
[1750732332004,31.1716248,143.11,143.07,5.76690666]
[1750732332798,18.39267941,143.12,143.07,95.16690666]
[1750732333002,18.39267941,143.12,143.08,5.76690666]
[1750732333203,12.62577275,143.12,143.08,5.76690666]
[1750732333403,17.80909909,143.12,143.08,5.76690666]
[1750732333608,12.62577275,143.12,143.08,5.76690666]
[1750732335109,12.62577275,143.12,143.08,12.75576134]
[1750732336006,12.62577275,143.12,143.09,5.76690666]
[1750732336313,12.62577275,143.12,143.09,95.16690666]
[1750732337696,12.62577275,143.12,143.09,102.15544861]
[1750732340321,5.76690666,143.19,143.11,24.41655552]
[1750732340511,5.76690666,143.18,143.13,5.76690666]
[1750732340823,26.0,143.18,143.13,5.76690666]
[1750732341118,31.76690666,143.18,143.13,5.76690666]
[1750732342601,5.76690666,143.17,143.13,5.76690666]
[1750732342816,31.76690666,143.18,143.13,95.16690666]
[1750732344429,26.0,143.18,143.13,95.16690666]
[1750732344726,31.76690666,143.18,143.13,95.16690666]
[1750732344926,31.76690666,143.18,143.13,96.38661449]
[1750732345226,31.76690666,143.18,143.13,102.15352115]
[1750732345427,31.76690666,143.18,143.14,5.76690666]
[1750732345812,5.76690666,143.19,143.14,5.76690666]
[1750732346013,5.76690666,143.19,143.14,95.16690666]
[1750732346225,5.76690666,143.19,143.15,5.76690666]
[1750732346445,5.76690666,143.19,143.15,7.32650666]
[1750732347404,5.76690666,143.19,143.15,1.5596]
[1750732348015,5.76690666,143.19,143.15,14.96566126]
[1750732348324,5.76690666,143.19,143.15,7.98]
[1750732349806,26.0,143.2,143.15,7.98]
[1750732350009,5.76690666,143.19,143.15,7.98]
[1750732350216,5.1564116,143.23,143.17,5.76690666]
[1750732350408,5.76690666,143.22,143.15,7.98]
[1750732350722,26.0,143.22,143.15,14.96554701]
[1750732350928,5.76690666,143.2,143.16,5.76690666]
[1750732351506,26.0,143.21,143.16,5.76690666]
[1750732351707,5.76690666,143.2,143.16,5.76690666]
[1750732351904,5.76690666,143.2,143.15,20.73245367]
[1750732352202,5.76690666,143.2,143.16,5.76690666]
[1750732352415,5.1564116,143.24,143.17,5.76690666]
[1750732352605,31.76690666,143.22,143.17,5.76690666]
[1750732352797,5.76690666,143.21,143.17,5.76690666]
[1750732353414,26.0,143.22,143.15,104.36554701]
[1750732353716,5.76690666,143.21,143.16,5.76690666]
[1750732353912,5.76690666,143.17,143.15,89.4]
[1750732354133,5.76690666,143.17,143.12,103.76287463]
[1750732354931,26.0,143.2,143.12,103.76287463]
[1750732355132,5.76690666,143.17,143.12,103.76287463]
[1750732355302,5.76690666,143.17,143.13,5.76690666]
[1750732355504,26.0,143.2,143.13,12.75335798]
[1750732355728,5.76690666,143.18,143.13,102.15335798]
[1750732356231,26.0,143.2,143.13,102.15335798]
[1750732356406,5.76690666,143.18,143.13,102.15335798]
[1750732358030,26.0,143.2,143.13,102.15335798]
[1750732358216,5.76690666,143.18,143.13,102.15335798]
[1750732358414,5.76690666,143.15,143.13,89.4]
[1750732358617,5.76690666,143.14,143.09,6.2]
[1750732358810,26.0,143.17,143.09,6.2]
[1750732358811,5.76690666,143.12,143.09,6.2]
[1750732360833,5.76690666,143.13,143.09,6.2]
[1750732361011,5.76690666,143.12,143.09,6.2]
[1750732362916,26.0,143.16,143.1,25.63776905]
[1750732363119,5.76690666,143.15,143.1,120.80467571]
[1750732364329,5.76690666,143.14,143.1,89.4]
[1750732364833,5.76690666,143.14,143.1,95.16690666]
[1750732365211,5.76690666,143.15,143.11,5.76690666]
[1750732365428,26.0,143.17,143.11,5.76690666]
[1750732365620,5.76690666,143.16,143.11,5.76690666]
[1750732366107,5.76690666,143.15,143.11,5.76690666]
[1750732366316,5.76690666,143.15,143.1,102.15493598]
[1750732366723,26.0,143.17,143.1,102.15493598]
[1750732366920,5.76690666,143.15,143.1,102.15493598]
[1750732368830,5.76690666,143.16,143.11,12.75414383]
[1750732369032,5.76690666,143.16,143.11,31.40379269]
[1750732370442,31.76690666,143.17,143.12,12.75359295]
[1750732370941,5.14235143,143.2,143.14,5.76690666]
[1750732371136,5.76690666,143.19,143.14,95.16690666]
[1750732371441,31.76690666,143.19,143.14,95.16690666]
[1750732371926,31.76690666,143.19,143.14,102.15272714]
[1750732372438,5.76690666,143.18,143.14,96.38582048]
[1750732373933,5.76690666,143.16,143.14,89.4]
[1750732374136,5.76690666,143.16,143.11,31.40387719]
[1750732374440,26.0,143.19,143.12,5.76690666]